[Event "EWIBCC 2019"]
[Site "Monte-Carlo"]
[Date "2019.11.29"]
[Round "4.9"]
[White "Buksa, Nataliya"]
[Black "Solozhenkina, Elizaveta"]
[Result "1-0"]
[ECO "B19"]
[WhiteElo "2410"]
[BlackElo "2314"]
[Annotator "NA"]
[PlyCount "107"]
[EventDate "2019.11.29"]
[EventType "swiss"]
[EventCountry "MNC"]
[SourceTitle "playchess.com"]
[Source "ChessBase"]
[SourceQuality "1"]
[TimeControl "180+2"]

1. e4 {[%emt 0:00:00]} c6 {[%emt 0:00:00]} 2. d4 {[%emt 0:00:00]} d5 {[%emt 0:03:04]} 3. Nc3 {[%emt 0:00:00]} dxe4 {[%emt 0:00:00]} 4. Nxe4 {[%emt 0:00:01]} Bf5 {[%emt 0:00:00]} 5. Ng3 {[%emt 0:00:00]} Bg6 {[%emt 0:00:00]} 6. h4 {[%emt 0:00:01]} h6 {[%emt 0:00:00]} 7. Nf3 {[%emt 0:00:01]} Nd7 {[%emt 0:00:00]} 8. h5 {[%emt 0:00:01]} Bh7 {[%emt 0:00:00]} 9. Bd3 {[%emt 0:00:01]} Bxd3 10. Qxd3 {[%emt 0:00:01]} e6 {[%emt 0:00:00]} 11. Bd2 {[%emt 0:00:01]} Ngf6 {[%emt 0:00:00]} 12. O-O-O {[%emt 0:00:01]} c5 {[%emt 0:00:00]} 13. Rhe1 {[%emt 0:00:14]} Be7 {[%emt 0:00:00]} 14. dxc5 {[%emt 0:00:35]} Nxc5 {[%emt 0:00:00]} 15. Qxd8+ {[%emt 0:00:01]} Rxd8 {[%emt 0:00:00]} 16. Be3 {[%emt 0:00:01]} Nd5 {[%emt 0:00:00]} 17. Bd4 {[%emt 0:00:01]} O-O {[%emt 0:00:00]} 18. Kb1 {[%emt 0:00:08]} a5 {[%emt 0:00:00]} 19. Ne2 {[%emt 0:00:30]} Rc8 {[%emt 0:00:00]} 20. a3 {[%emt 0:00:06]} Rfd8 {[%emt 0:00:00]} 21. Nc1 {[%emt 0:00:07]} Bf6 {[%emt 0:00:00]} 22. g3 {[%emt 0:00:11]} b5 {[%emt 0:00:00]} 23. Nd3 {[%emt 0:00:11]} Nxd3 {[%emt 0:00:06]} 24. Rxd3 {[%emt 0:00:00]} Bxd4 {[%emt 0:00:04]} 25. Rxd4 {[%emt 0:00:01]} b4 {[%emt 0:00:02]} 26. Red1 {[%emt 0:00:11]} Rc7 {[%emt 0:00:04]} 27. axb4 {[%emt 0:00:09]} axb4 {[%emt 0:00:02]} 28. Rxb4 {[%emt 0:00:01]} Nc3+ {[%emt 0:00:03]} 29. bxc3 {[%emt 0:00:01]} Rxd1+ {[%emt 0:00:01]} 30. Kb2 {[%emt 0:00:01]} Rf1 {[%emt 0:00:04]} 31. Ne5 {[%emt 0:00:19]} Rxf2 {[%emt 0:00:04]} 32. Nd3 {[%emt 0:00:03]} Rf3 {[%emt 0:00:11]} 33. g4 {[%emt 0:00:01]} f6 {[%emt 0:00:04]} 34. c4 {[%emt 0:00:02]} e5 {[%emt 0:00:02]} 35. c5 {[%emt 0:00:07]} Kf7 {[%emt 0:00:01]} 36. Rc4 {[%emt 0:00:06]} Ke6 {[%emt 0:00:05]} 37. Ra4 {[%emt 0:00:11]} Re3 {[%emt 0:00:07]} 38. Ra6+ {[%emt 0:00:02]} Kf7 {[%emt 0:00:03]} 39. c6 {[%emt 0:00:04]} Re4 {[%emt 0:00:04]} 40. Kc3 {[%emt 0:00:01]} Rxg4 {[%emt 0:00:02]} 41. Nb4 {[%emt 0:00:01]} Rg3+ {[%emt 0:00:03]} 42. Kc4 {[%emt 0:00:04]} Rg2 {[%emt 0:00:01]} 43. c3 {[%emt 0:00:02]} Rd2 {[%emt 0:00:03]} 44. Nd5 {[%emt 0:00:01]} Rc8 {[%emt 0:00:00]} 45. Kc5 {[%emt 0:00:05]} e4 {[%emt 0:00:02]} 46. Ra7+ {[%emt 0:00:01]} Ke6 {[%emt 0:00:02]} 47. Re7+ {[%emt 0:00:02]} Kf5 {[%emt 0:00:00]} 48. Rxg7 {[%emt 0:00:01]} Ra2 {[%emt 0:00:04]} 49. Ne7+ {[%emt 0:00:01]} Kf4 {[%emt 0:00:04]} 50. Nxc8 {[%emt 0:00:01]} e3 {[%emt 0:00:02]} 51. Nd6 {[%emt 0:00:04]} e2 {[%emt 0:00:03]} 52. Re7 {[%emt 0:00:01]} Rc2 {[%emt 0:00:03]} 53. c4 {[%emt 0:00:01]} Rc3 {[%emt 0:00:01]} 54. Rxe2 {[%emt 0:00:50]} 1-0

[Event "EWIBCC 2019"]
[Site "Monte-Carlo"]
[Date "2019.11.29"]
[Round "4.10"]
[White "Belenkaya, Dina"]
[Black "Guichard, Pauline"]
[Result "0-1"]
[ECO "C46"]
[WhiteElo "2302"]
[BlackElo "2407"]
[Annotator "ChessBase"]
[PlyCount "105"]
[EventDate "2019.11.29"]
[EventType "swiss"]
[EventCountry "MNC"]
[SourceTitle "playchess.com"]
[Source "ChessBase"]
[SourceQuality "1"]
[TimeControl "180+2"]

1. e4 {[%emt 0:00:00]} e5 {[%emt 0:00:00]} 2. Nf3 {[%emt 0:00:01]} Nc6 {[%emt 0:00:00]} 3. d4 {[%emt 0:00:01]} exd4 {[%emt 0:00:02]} 4. Nxd4 {[%emt 0:00:01]} g6 {[%emt 0:00:02]} 5. Nxc6 {[%emt 0:00:10]} bxc6 {[%emt 0:00:01]} 6. Bc4 {[%emt 0:00:04]} Bg7 {[%emt 0:00:08]} 7. O-O {[%emt 0:00:03]} Ne7 {[%emt 0:00:07]} 8. Nc3 {[%emt 0:00:29]} O-O {[%emt 0:00:15]} 9. Re1 {[%emt 0:00:02]} d6 {[%emt 0:00:10]} 10. Bb3 {[%emt 0:00:02]} Be6 {[%emt 0:00:17]} 11. Bg5 {[%emt 0:00:04]} h6 {[%emt 0:00:15]} 12. Be3 {[%emt 0:00:10]} Bxb3 {[%emt 0:00:10]} 13. axb3 {[%emt 0:00:02]} c5 {[%emt 0:00:01]} 14. Qd2 {[%emt 0:00:04]} Kh7 {[%emt 0:00:01]} 15. Ra6 {[%emt 0:00:02]} Qd7 {[%emt 0:00:33]} 16. Rea1 {[%emt 0:00:10]} Nc8 {[%emt 0:00:08]} 17. Bxc5 {[%emt 0:00:11]} Bxc3 {[%emt 0:00:32]} 18. bxc3 {[%emt 0:00:01]} Qe7 {[%emt 0:00:01]} 19. Be3 {[%emt 0:00:11]} Qxe4 {[%emt 0:00:09]} 20. Bxh6 {[%emt 0:00:02]} Re8 {[%emt 0:00:01]} 21. Be3 {[%emt 0:00:02]} c5 {[%emt 0:00:09]} 22. R1a4 {[%emt 0:00:02]} Qe7 {[%emt 0:00:11]} 23. g3 {[%emt 0:00:12]} Kg8 {[%emt 0:00:11]} 24. Rh4 {[%emt 0:00:08]} Qb7 {[%emt 0:00:06]} 25. Raa4 {[%emt 0:00:09]} Nb6 {[%emt 0:00:05]} 26. Rag4 {[%emt 0:00:09]} Nd5 {[%emt 0:00:08]} 27. Bg5 {[%emt 0:00:24]} Re6 {[%emt 0:00:08]} 28. c4 {[%emt 0:00:41]} Nf6 {[%emt 0:00:02]} 29. Bxf6 {[%emt 0:00:01]} Rxf6 {[%emt 0:00:01]} 30. Rf4 {[%emt 0:00:04]} Qe7 {[%emt 0:00:06]} 31. Re4 {[%emt 0:00:04]} Qf8 {[%emt 0:00:00]} 32. Qd5 {[%emt 0:00:02]} Re8 {[%emt 0:00:00]} 33. Rxe8 {[%emt 0:00:04]} Qxe8 {[%emt 0:00:01]} 34. Re4 {[%emt 0:00:03]} Qd7 {[%emt 0:00:03]} 35. Kg2 {[%emt 0:00:03]} Re6 {[%emt 0:00:01]} 36. Rf4 {[%emt 0:00:02]} Kg7 {[%emt 0:00:02]} 37. h4 {[%emt 0:00:02]} Re5 {[%emt 0:00:02]} 38. Qa8 {[%emt 0:00:01]} Qe7 {[%emt 0:00:01]} 39. Qc6 {[%emt 0:00:08]} Re1 {[%emt 0:00:02]} 40. Qd5 {[%emt 0:00:02]} Re5 {[%emt 0:00:01]} 41. Qc6 {[%emt 0:00:02]} Re1 {[%emt 0:00:01]} 42. Rf3 {[%emt 0:00:02]} Qe2 {[%emt 0:00:05]} 43. Re3 {[%emt 0:00:06]} Qf1+ {[%emt 0:00:01]} 44. Kh2 {[%emt 0:00:05]} Rxe3 {[%emt 0:00:08]} 45. fxe3 {[%emt 0:00:02]} Qf2+ 46. Qg2 {[%emt 0:00:02]} Qxe3 {[%emt 0:00:04]} 47. c3 {[%emt 0:00:02]} Qxc3 {[%emt 0:00:02]} 48. Qf2 {[%emt 0:00:02]} Qxb3 {[%emt 0:00:02]} 49. Qe2 {[%emt 0:00:02]} Qc3 {[%emt 0:00:02]} 50. Kh3 {[%emt 0:00:02]} a5 {[%emt 0:00:02]} 51. Qe4 {[%emt 0:00:02]} Qd4 {[%emt 0:00:02]} 52. Qe2 {[%emt 0:00:02]} a4 {[%emt 0:00:02]} 53. Qa2 {[%emt 0:00:02]} 0-1

[Event "EWIBCC 2019"]
[Site "Monte-Carlo"]
[Date "2019.11.29"]
[Round "4.11"]
[White "Bulmaga, Irina"]
[Black "Paasikangas-Tella, Johanna"]
[Result "1-0"]
[ECO "B76"]
[WhiteElo "2435"]
[BlackElo "2177"]
[Annotator "NA"]
[PlyCount "69"]
[EventDate "2019.11.29"]
[EventType "swiss"]
[EventCountry "MNC"]
[SourceTitle "playchess.com"]
[Source "ChessBase"]
[SourceQuality "1"]
[TimeControl "180+2"]

1. e4 {[%emt 0:00:00]} c5 {[%emt 0:00:00]} 2. Nf3 {[%emt 0:00:01]} d6 {[%emt 0:00:01]} 3. d4 {[%emt 0:00:01]} cxd4 {[%emt 0:00:01]} 4. Nxd4 {[%emt 0:00:01]} Nf6 {[%emt 0:00:01]} 5. Nc3 {[%emt 0:00:02]} g6 {[%emt 0:00:01]} 6. f3 {[%emt 0:00:01]} Bg7 {[%emt 0:00:02]} 7. Be3 {[%emt 0:00:02]} O-O {[%emt 0:00:02]} 8. Qd2 {[%emt 0:00:01]} Nc6 {[%emt 0:00:05]} 9. O-O-O {[%emt 0:00:03]} d5 {[%emt 0:00:13]} 10. Qe1 {[%emt 0:00:02]} e5 {[%emt 0:00:22]} 11. Nxc6 {[%emt 0:00:03]} bxc6 {[%emt 0:00:02]} 12. exd5 {[%emt 0:00:14]} cxd5 {[%emt 0:00:01]} 13. Bg5 {[%emt 0:00:18]} d4 {[%emt 0:00:07]} 14. Ne4 {[%emt 0:00:03]} Qb6 {[%emt 0:00:18]} 15. Bxf6 {[%emt 0:00:19]} Bxf6 {[%emt 0:00:01]} 16. Nxf6+ {[%emt 0:00:15]} Qxf6 {[%emt 0:00:02]} 17. Bc4 {[%emt 0:00:03]} Bf5 {[%emt 0:00:02]} 18. Kb1 {[%emt 0:00:09]} Rab8 {[%emt 0:00:11]} 19. g4 {[%emt 0:00:21]} Be6 {[%emt 0:00:08]} 20. Bb3 {[%emt 0:00:10]} Rfd8 {[%emt 0:00:17]} 21. Qe4 {[%emt 0:00:04]} a5 {[%emt 0:00:06]} 22. Rhe1 {[%emt 0:00:04]} Bxb3 {[%emt 0:00:14]} 23. cxb3 {[%emt 0:00:23]} Rb5 {[%emt 0:00:02]} 24. Rd3 {[%emt 0:00:12]} Rc5 {[%emt 0:00:09]} 25. a3 {[%emt 0:00:13]} Rdc8 {[%emt 0:00:04]} 26. Ka2 {[%emt 0:00:05]} Qe6 {[%emt 0:00:20]} 27. a4 {[%emt 0:00:03]} Qb6 {[%emt 0:00:07]} 28. f4 {[%emt 0:00:05]} Qb4 {[%emt 0:00:24]} 29. fxe5 {[%emt 0:00:09]} Re8 {[%emt 0:00:24]} 30. Rxd4 {[%emt 0:00:10]} Qb8 {[%emt 0:00:03]} 31. Qd3 {[%emt 0:00:03]} Rcxe5 {[%emt 0:00:05]} 32. Rxe5 {[%emt 0:00:02]} Qxe5 {[%emt 0:00:01]} 33. Rd5 {[%emt 0:00:02]} Qe1 {[%emt 0:00:01]} 34. Qd2 {[%emt 0:00:02]} Qe4 {[%emt 0:00:07]} 35. h3 {[%emt 0:00:07]} 1-0

[Event "EWIBCC 2019"]
[Site "Monte-Carlo"]
[Date "2019.11.29"]
[Round "4.12"]
[White "Savina, Anastasia"]
[Black "Babiy, Olga"]
[Result "0-1"]
[ECO "D28"]
[WhiteElo "2354"]
[BlackElo "2249"]
[Annotator "NA"]
[PlyCount "104"]
[EventDate "2019.11.29"]
[EventType "swiss"]
[EventCountry "MNC"]
[SourceTitle "playchess.com"]
[Source "ChessBase"]
[SourceQuality "1"]
[TimeControl "180+2"]

1. d4 {[%emt 0:00:00]} d5 {[%emt 0:00:00]} 2. c4 {[%emt 0:00:01]} dxc4 {[%emt 0:00:00]} 3. e3 {[%emt 0:00:08]} Nf6 {[%emt 0:00:01]} 4. Nf3 {[%emt 0:00:01]} a6 {[%emt 0:00:02]} 5. Bxc4 {[%emt 0:00:02]} e6 {[%emt 0:00:01]} 6. O-O {[%emt 0:00:03]} c5 {[%emt 0:00:01]} 7. Nc3 {[%emt 0:00:04]} Nc6 {[%emt 0:00:08]} 8. Qe2 {[%emt 0:00:31]} Be7 {[%emt 0:00:05]} 9. Rd1 {[%emt 0:00:02]} Qc7 {[%emt 0:00:01]} 10. dxc5 {[%emt 0:00:20]} Bxc5 {[%emt 0:00:01]} 11. b3 {[%emt 0:00:10]} b5 {[%emt 0:00:18]} 12. Bd3 {[%emt 0:00:08]} e5 {[%emt 0:00:02]} 13. Ne4 {[%emt 0:00:16]} Be7 {[%emt 0:00:14]} 14. Bb2 {[%emt 0:00:06]} Bb7 {[%emt 0:00:04]} 15. Rac1 {[%emt 0:00:02]} Qb8 {[%emt 0:00:21]} 16. Nxf6+ {[%emt 0:00:29]} Bxf6 {[%emt 0:00:01]} 17. Be4 {[%emt 0:00:07]} Na5 {[%emt 0:00:06]} 18. Bxb7 {[%emt 0:00:07]} Nxb7 {[%emt 0:00:01]} 19. Ba3 {[%emt 0:00:04]} Be7 {[%emt 0:00:27]} 20. Bxe7 {[%emt 0:00:05]} Kxe7 {[%emt 0:00:01]} 21. Rd5 {[%emt 0:00:08]} f6 {[%emt 0:00:00]} 22. Qd3 {[%emt 0:00:09]} Nd6 {[%emt 0:00:18]} 23. Nxe5 {[%emt 0:00:26]} fxe5 {[%emt 0:00:09]} 24. Rxe5+ {[%emt 0:00:01]} Kf6 {[%emt 0:00:35]} 25. Rd5 {[%emt 0:00:10]} Rd8 {[%emt 0:00:03]} 26. Rc6 {[%emt 0:00:02]} Ke7 {[%emt 0:00:03]} 27. Qxh7 {[%emt 0:00:06]} Ne8 {[%emt 0:00:12]} 28. Qh4+ {[%emt 0:00:02]} Kf7 {[%emt 0:00:08]} 29. Rf5+ {[%emt 0:00:05]} Kg8 {[%emt 0:00:14]} 30. Rc1 {[%emt 0:00:02]} Qd6 {[%emt 0:00:04]} 31. Qg4 {[%emt 0:00:02]} Nf6 {[%emt 0:00:02]} 32. Qf3 {[%emt 0:00:01]} Rac8 {[%emt 0:00:03]} 33. Rf1 {[%emt 0:00:03]} Rc5 {[%emt 0:00:02]} 34. Rxc5 {[%emt 0:00:01]} Qxc5 {[%emt 0:00:01]} 35. h3 {[%emt 0:00:01]} Qd5 {[%emt 0:00:01]} 36. Qf4 {[%emt 0:00:02]} Qd6 {[%emt 0:00:01]} 37. Qf5 {[%emt 0:00:01]} Qd5 {[%emt 0:00:00]} 38. Qc2 {[%emt 0:00:02]} Kf7 {[%emt 0:00:03]} 39. Rc1 {[%emt 0:00:02]} Rd7 {[%emt 0:00:01]} 40. Qc8 {[%emt 0:00:01]} Ne4 {[%emt 0:00:08]} 41. Qxa6 {[%emt 0:00:03]} Qf5 {[%emt 0:00:03]} 42. Rf1 {[%emt 0:00:02]} Rd2 {[%emt 0:00:01]} 43. Qb7+ {[%emt 0:00:02]} Kg6 {[%emt 0:00:02]} 44. Qc6+ {[%emt 0:00:04]} Kh7 {[%emt 0:00:01]} 45. Qc1 {[%emt 0:00:02]} Rxf2 {[%emt 0:00:02]} 46. Rxf2 {[%emt 0:00:03]} Qxf2+ {[%emt 0:00:01]} 47. Kh1 {[%emt 0:00:01]} Ng3+ {[%emt 0:00:02]} 48. Kh2 {[%emt 0:00:01]} Nf1+ {[%emt 0:00:01]} 49. Kh1 {[%emt 0:00:01]} Nxe3 {[%emt 0:00:02]} 50. Qb1+ {[%emt 0:00:00]} g6 {[%emt 0:00:02]} 51. Qe4 {[%emt 0:00:02]} Qe1+ {[%emt 0:00:02]} 52. Kh2 {[%emt 0:00:01]} Nf1+ {[%emt 0:00:01]} 0-1

[Event "EWIBCC 2019"]
[Site "Monte-Carlo"]
[Date "2019.11.29"]
[Round "4.13"]
[White "Reizniece-Ozola, Dana"]
[Black "Muetsch, Annmarie"]
[Result "1-0"]
[ECO "E63"]
[WhiteElo "2305"]
[BlackElo "2240"]
[Annotator "NA"]
[PlyCount "73"]
[EventDate "2019.11.29"]
[EventType "swiss"]
[EventCountry "MNC"]
[SourceTitle "playchess.com"]
[Source "ChessBase"]
[SourceQuality "1"]
[TimeControl "180+2"]

1. c4 {[%emt 0:00:00]} Nf6 {[%emt 0:00:00]} 2. Nc3 {[%emt 0:00:00]} g6 {[%emt 0:00:00]} 3. g3 {[%emt 0:00:01]} Bg7 {[%emt 0:00:01]} 4. Bg2 {[%emt 0:00:00]} O-O {[%emt 0:00:02]} 5. Nf3 {[%emt 0:00:01]} d6 {[%emt 0:00:02]} 6. O-O {[%emt 0:00:01]} Nc6 {[%emt 0:00:03]} 7. d4 {[%emt 0:00:02]} a6 {[%emt 0:00:03]} 8. Rb1 {[%emt 0:00:03]} Bd7 {[%emt 0:00:05]} 9. Re1 {[%emt 0:00:02]} e5 {[%emt 0:00:10]} 10. d5 {[%emt 0:00:13]} Ne7 {[%emt 0:00:13]} 11. b4 {[%emt 0:00:17]} b6 {[%emt 0:00:09]} 12. e4 {[%emt 0:00:04]} a5 {[%emt 0:00:05]} 13. a3 {[%emt 0:00:01]} axb4 {[%emt 0:00:03]} 14. axb4 {[%emt 0:00:01]} h6 {[%emt 0:00:09]} 15. h3 {[%emt 0:00:05]} Ne8 {[%emt 0:00:10]} 16. Be3 {[%emt 0:00:06]} f5 {[%emt 0:00:07]} 17. c5 {[%emt 0:00:52]} g5 {[%emt 0:00:38]} 18. exf5 {[%emt 0:00:28]} Nxf5 {[%emt 0:00:15]} 19. cxb6 {[%emt 0:00:19]} cxb6 {[%emt 0:00:11]} 20. Bd2 {[%emt 0:00:08]} Nf6 {[%emt 0:00:06]} 21. Qb3 {[%emt 0:00:15]} Qe8 {[%emt 0:00:17]} 22. Nh2 {[%emt 0:00:09]} Nd4 {[%emt 0:00:07]} 23. Qd1 {[%emt 0:00:06]} Qc8 {[%emt 0:00:04]} 24. g4 {[%emt 0:00:19]} Qe8 {[%emt 0:00:09]} 25. Nf3 {[%emt 0:00:04]} Nxf3+ {[%emt 0:00:03]} 26. Bxf3 {[%emt 0:00:01]} Qg6 {[%emt 0:00:03]} 27. Ne4 {[%emt 0:00:02]} Nxe4 {[%emt 0:00:04]} 28. Bxe4 {[%emt 0:00:01]} Qf7 {[%emt 0:00:03]} 29. Be3 {[%emt 0:00:01]} b5 {[%emt 0:00:03]} 30. Qe2 {[%emt 0:00:01]} Ra3 {[%emt 0:00:10]} 31. Rbc1 {[%emt 0:00:03]} Rfa8 {[%emt 0:00:03]} 32. Rc7 {[%emt 0:00:02]} Qe8 {[%emt 0:00:05]} 33. Bb1 {[%emt 0:00:02]} Bf6 {[%emt 0:00:05]} 34. Qc2 {[%emt 0:00:02]} Qf7 {[%emt 0:00:05]} 35. Qe4 {[%emt 0:00:04]} Bd8 {[%emt 0:00:05]} 36. Rb7 {[%emt 0:00:00]} R3a7 {[%emt 0:00:02]} 37. Bxa7 {[%emt 0:00:02]} 1-0

[Event "EWIBCC 2019"]
[Site "Monte-Carlo"]
[Date "2019.11.29"]
[Round "4.14"]
[White "Socko, Monika"]
[Black "Ovod, Evgenija"]
[Result "1-0"]
[ECO "E04"]
[WhiteElo "2417"]
[BlackElo "2347"]
[Annotator "NA"]
[PlyCount "92"]
[EventDate "2019.11.29"]
[EventType "swiss"]
[EventCountry "MNC"]
[SourceTitle "playchess.com"]
[Source "ChessBase"]
[SourceQuality "1"]
[TimeControl "180+2"]

1. d4 {[%emt 0:00:00]} d5 {[%emt 0:00:00]} 2. c4 {[%emt 0:00:01]} e6 {[%emt 0:00:00]} 3. Nf3 {[%emt 0:00:02]} Nf6 {[%emt 0:00:00]} 4. g3 {[%emt 0:00:02]} dxc4 {[%emt 0:00:01]} 5. Bg2 {[%emt 0:00:02]} c5 {[%emt 0:00:01]} 6. O-O {[%emt 0:00:07]} Nc6 {[%emt 0:00:00]} 7. Ne5 {[%emt 0:00:17]} Bd7 {[%emt 0:00:16]} 8. Na3 {[%emt 0:00:20]} cxd4 {[%emt 0:00:08]} 9. Naxc4 {[%emt 0:00:10]} Bc5 {[%emt 0:00:10]} 10. a3 {[%emt 0:00:21]} a5 {[%emt 0:00:07]} 11. Nd3 {[%emt 0:00:08]} Be7 {[%emt 0:00:08]} 12. Qb3 {[%emt 0:00:01]} Ra7 {[%emt 0:00:22]} 13. Bf4 {[%emt 0:00:13]} O-O {[%emt 0:00:05]} 14. Rac1 {[%emt 0:00:11]} a4 {[%emt 0:00:09]} 15. Qb6 {[%emt 0:00:06]} Qxb6 {[%emt 0:00:12]} 16. Nxb6 {[%emt 0:00:01]} Ra6 {[%emt 0:00:13]} 17. Nxd7 {[%emt 0:00:19]} Nxd7 {[%emt 0:00:02]} 18. Bd2 {[%emt 0:00:01]} f6 {[%emt 0:00:30]} 19. Rfd1 {[%emt 0:00:02]} Rb8 {[%emt 0:00:07]} 20. Bh3 {[%emt 0:00:02]} Kf7 {[%emt 0:00:05]} 21. Nf4 {[%emt 0:00:02]} Nf8 {[%emt 0:00:06]} 22. Be1 {[%emt 0:00:06]} Rd8 {[%emt 0:00:07]} 23. Kf1 {[%emt 0:00:04]} Bd6 {[%emt 0:00:15]} 24. Nd3 {[%emt 0:00:06]} Na5 {[%emt 0:00:07]} 25. Bxa5 {[%emt 0:00:09]} Rxa5 {[%emt 0:00:01]} 26. Bg2 {[%emt 0:00:02]} Rd7 {[%emt 0:00:03]} 27. Rc4 {[%emt 0:00:01]} e5 {[%emt 0:00:06]} 28. Nb4 {[%emt 0:00:02]} Ne6 {[%emt 0:00:09]} 29. Nd5 {[%emt 0:00:04]} Nc5 {[%emt 0:00:06]} 30. Rdc1 {[%emt 0:00:06]} Rb5 {[%emt 0:00:03]} 31. R1c2 {[%emt 0:00:01]} e4 {[%emt 0:00:04]} 32. Nb4 {[%emt 0:00:03]} f5 {[%emt 0:00:04]} 33. Rxd4 {[%emt 0:00:03]} Ne6 {[%emt 0:00:04]} 34. Rd1 {[%emt 0:00:03]} Ke7 {[%emt 0:00:03]} 35. Rcd2 {[%emt 0:00:02]} Nc5 {[%emt 0:00:04]} 36. Rd5 {[%emt 0:00:03]} g6 {[%emt 0:00:03]} 37. g4 {[%emt 0:00:01]} Ke6 {[%emt 0:00:02]} 38. gxf5+ {[%emt 0:00:04]} gxf5 {[%emt 0:00:03]} 39. Bh3 {[%emt 0:00:00]} Ke7 {[%emt 0:00:06]} 40. Bxf5 {[%emt 0:00:02]} Rd8 {[%emt 0:00:01]} 41. Bxh7 {[%emt 0:00:04]} Rb6 {[%emt 0:00:02]} 42. Bf5 {[%emt 0:00:04]} Nb3 {[%emt 0:00:06]} 43. h4 {[%emt 0:00:04]} Rh8 {[%emt 0:00:05]} 44. Bxe4 {[%emt 0:00:46]} Rxh4 45. Bg2 {[%emt 0:00:02]} Bxb4 {[%emt 0:00:04]} 46. axb4 {[%emt 0:00:02]} Rhxb4 {[%emt 0:00:02]} 1-0

[Event "EWIBCC 2019"]
[Site "Monte-Carlo"]
[Date "2019.11.29"]
[Round "4.16"]
[White "Daulyte-Cornette, Deimante"]
[Black "Zvereva, Marija"]
[Result "1-0"]
[ECO "B23"]
[WhiteElo "2405"]
[BlackElo "2154"]
[Annotator "NA"]
[PlyCount "99"]
[EventDate "2019.11.29"]
[EventType "swiss"]
[EventCountry "MNC"]
[SourceTitle "playchess.com"]
[Source "ChessBase"]
[SourceQuality "1"]
[TimeControl "180+2"]

1. e4 {[%emt 0:00:00]} c5 {[%emt 0:00:00]} 2. Nc3 {[%emt 0:00:02]} Nc6 {[%emt 0:00:02]} 3. Bb5 {[%emt 0:00:01]} g6 {[%emt 0:00:02]} 4. Bxc6 {[%emt 0:00:07]} bxc6 {[%emt 0:00:01]} 5. d3 {[%emt 0:00:03]} Bg7 {[%emt 0:00:03]} 6. f4 {[%emt 0:00:02]} e5 {[%emt 0:00:04]} 7. Nf3 {[%emt 0:00:08]} exf4 {[%emt 0:00:09]} 8. Bxf4 {[%emt 0:00:02]} d6 {[%emt 0:00:01]} 9. O-O {[%emt 0:00:06]} Nf6 {[%emt 0:00:14]} 10. e5 {[%emt 0:00:30]} Nh5 {[%emt 0:00:04]} 11. Bg5 {[%emt 0:00:01]} Qb6 {[%emt 0:00:37]} 12. exd6 {[%emt 0:00:10]} O-O {[%emt 0:00:07]} 13. Rb1 {[%emt 0:00:13]} c4+ {[%emt 0:00:11]} 14. d4 {[%emt 0:00:08]} Bg4 {[%emt 0:00:23]} 15. Ne2 {[%emt 0:00:06]} f6 {[%emt 0:00:15]} 16. Bh4 {[%emt 0:00:24]} Rad8 {[%emt 0:00:01]} 17. Ng3 {[%emt 0:00:14]} Rxd6 {[%emt 0:00:11]} 18. c3 {[%emt 0:00:08]} Nf4 {[%emt 0:00:27]} 19. Ne4 {[%emt 0:00:25]} Re6 {[%emt 0:00:01]} 20. Nc5 {[%emt 0:00:02]} Re2 {[%emt 0:00:11]} 21. Rf2 {[%emt 0:00:02]} Bxf3 {[%emt 0:00:06]} 22. Rxf3 {[%emt 0:00:01]} Rxg2+ {[%emt 0:00:05]} 23. Kh1 {[%emt 0:00:00]} Rxb2 {[%emt 0:00:16]} 24. Rxb2 {[%emt 0:00:07]} Qxb2 {[%emt 0:00:02]} 25. Rxf4 {[%emt 0:00:02]} g5 {[%emt 0:00:05]} 26. Rf2 {[%emt 0:00:08]} Qxc3 {[%emt 0:00:03]} 27. Bg3 {[%emt 0:00:01]} Rd8 {[%emt 0:00:04]} 28. Ne6 {[%emt 0:00:03]} Re8 {[%emt 0:00:02]} 29. d5 {[%emt 0:00:17]} cxd5 {[%emt 0:00:02]} 30. Qxd5 {[%emt 0:00:01]} Qe1+ {[%emt 0:00:03]} 31. Kg2 {[%emt 0:00:02]} Qxe6 {[%emt 0:00:01]} 32. Qb7 {[%emt 0:00:03]} Re7 {[%emt 0:00:01]} 33. Qb8+ {[%emt 0:00:01]} Kf7 {[%emt 0:00:01]} 34. Bd6 {[%emt 0:00:04]} Rd7 {[%emt 0:00:01]} 35. Bg3 {[%emt 0:00:07]} Qe4+ {[%emt 0:00:01]} 36. Kh3 {[%emt 0:00:04]} c3 {[%emt 0:00:01]} 37. Qb3+ {[%emt 0:00:01]} Qd5 {[%emt 0:00:02]} 38. Qxc3 {[%emt 0:00:02]} g4+ {[%emt 0:00:03]} 39. Kxg4 {[%emt 0:00:04]} h5+ {[%emt 0:00:01]} 40. Kh3 {[%emt 0:00:02]} Re7 {[%emt 0:00:07]} 41. Qc2 {[%emt 0:00:10]} Re4 {[%emt 0:00:04]} 42. Qc7+ {[%emt 0:00:01]} Re7 {[%emt 0:00:00]} 43. Qf4 {[%emt 0:00:02]} Re4 {[%emt 0:00:05]} 44. Qf3 {[%emt 0:00:02]} Qd4 {[%emt 0:00:04]} 45. Rc2 {[%emt 0:00:03]} Re7 {[%emt 0:00:03]} 46. Qxh5+ {[%emt 0:00:01]} Ke6 {[%emt 0:00:02]} 47. Re2+ {[%emt 0:00:02]} Kd7 {[%emt 0:00:01]} 48. Qb5+ {[%emt 0:00:02]} Kd8 {[%emt 0:00:02]} 49. Qb8+ {[%emt 0:00:01]} Kd7 {[%emt 0:00:01]} 50. Qc7+ {[%emt 0:00:01]} 1-0

[Event "EWIBCC 2019"]
[Site "Monte-Carlo"]
[Date "2019.11.29"]
[Round "4.17"]
[White "Mkrtchian, Lilit"]
[Black "Johansson, Viktoria"]
[Result "1-0"]
[ECO "A36"]
[WhiteElo "2402"]
[BlackElo "2120"]
[Annotator "NA"]
[PlyCount "77"]
[EventDate "2019.11.29"]
[EventType "swiss"]
[EventCountry "MNC"]
[SourceTitle "playchess.com"]
[Source "ChessBase"]
[SourceQuality "1"]
[TimeControl "180+2"]

1. c4 {[%emt 0:00:00]} c5 {[%emt 0:00:00]} 2. g3 {[%emt 0:00:01]} Nc6 {[%emt 0:00:00]} 3. Bg2 {[%emt 0:00:01]} g6 {[%emt 0:00:01]} 4. Nc3 {[%emt 0:00:02]} Bg7 {[%emt 0:00:01]} 5. d3 {[%emt 0:00:01]} e5 {[%emt 0:00:03]} 6. Qd2 {[%emt 0:00:04]} Nge7 {[%emt 0:00:07]} 7. b3 {[%emt 0:00:02]} d6 {[%emt 0:00:02]} 8. Bb2 {[%emt 0:00:02]} Be6 {[%emt 0:00:05]} 9. Nd5 {[%emt 0:00:01]} O-O {[%emt 0:00:12]} 10. e3 {[%emt 0:00:02]} Rb8 {[%emt 0:00:03]} 11. Ne2 {[%emt 0:00:02]} b5 {[%emt 0:00:03]} 12. O-O {[%emt 0:00:12]} b4 {[%emt 0:00:28]} 13. Nxe7+ {[%emt 0:00:37]} Nxe7 {[%emt 0:00:01]} 14. d4 {[%emt 0:00:01]} Qc7 {[%emt 0:00:10]} 15. d5 {[%emt 0:00:11]} Bd7 {[%emt 0:00:06]} 16. f4 {[%emt 0:00:04]} a5 {[%emt 0:00:02]} 17. fxe5 {[%emt 0:00:05]} a4 {[%emt 0:00:38]} 18. exd6 {[%emt 0:00:31]} Qxd6 {[%emt 0:00:01]} 19. Bxg7 {[%emt 0:00:01]} Kxg7 {[%emt 0:00:01]} 20. Qb2+ {[%emt 0:00:02]} f6 {[%emt 0:00:07]} 21. Rae1 {[%emt 0:00:04]} Nf5 {[%emt 0:00:13]} 22. Qd2 {[%emt 0:00:37]} Rbe8 {[%emt 0:00:02]} 23. e4 {[%emt 0:00:02]} Ne7 {[%emt 0:00:12]} 24. Nf4 {[%emt 0:00:06]} Nc8 {[%emt 0:00:06]} 25. Nd3 {[%emt 0:00:02]} Qb6 {[%emt 0:00:19]} 26. Qf2 {[%emt 0:00:05]} axb3 {[%emt 0:00:11]} 27. axb3 {[%emt 0:00:06]} Nd6 {[%emt 0:00:12]} 28. Nxc5 {[%emt 0:00:02]} Bg4 {[%emt 0:00:09]} 29. Ne6+ {[%emt 0:00:05]} Rxe6 {[%emt 0:00:06]} 30. Qxb6 {[%emt 0:00:05]} Nxc4 {[%emt 0:00:00]} 31. Qc7+ {[%emt 0:00:08]} Rf7 {[%emt 0:00:02]} 32. Qxc4 {[%emt 0:00:05]} Rb6 {[%emt 0:00:04]} 33. e5 {[%emt 0:00:07]} fxe5 {[%emt 0:00:01]} 34. Rxf7+ {[%emt 0:00:04]} Kxf7 {[%emt 0:00:01]} 35. Qxg4 {[%emt 0:00:02]} Rb7 {[%emt 0:00:04]} 36. Qe6+ {[%emt 0:00:02]} Kg7 {[%emt 0:00:01]} 37. Qxe5+ {[%emt 0:00:02]} Kg8 {[%emt 0:00:00]} 38. d6 {[%emt 0:00:01]} Rf7 {[%emt 0:00:04]} 39. Bd5 {[%emt 0:00:02]} 1-0